bitfinex-derivatives/quotes_BTCF0:USTF0_20251108
["timestamp","ask_amount","ask_price","bid_price","bid_amount"]
[1762641833872,0.17226065,102330.0,102320.0,0.1130983]
[1762641834070,0.28693868,102330.0,102320.0,0.07823299]
[1762641834270,0.1553639,102320.0,102310.0,0.69439612]
[1762641835570,0.1553639,102320.0,102310.0,0.54609612]
[1762641836273,0.1553639,102320.0,102310.0,0.54709612]
[1762641839373,0.1553639,102320.0,102310.0,0.62638476]
[1762641841574,0.1553639,102320.0,102310.0,0.52861416]
[1762641841779,0.1553639,102320.0,102310.0,0.62638756]
[1762641842279,0.1553639,102320.0,102310.0,0.57387437]
[1762641843778,0.27004193,102320.0,102310.0,0.47610097]
[1762641843974,0.90515792,102320.0,102310.0,0.44123566]
[1762641844482,0.90515792,102320.0,102310.0,0.36194702]
[1762641844680,1.31833059,102320.0,102310.0,0.00114702]
[1762641845077,1.28736281,102320.0,102310.0,0.00114702]
[1762641845479,0.68736281,102320.0,102310.0,0.00114702]
[1762641845678,0.73973548,102320.0,102310.0,0.00114702]
[1762641846186,0.73973548,102320.0,102310.0,0.00014702]
[1762641846388,0.74473548,102320.0,102310.0,0.00014702]
[1762641847886,0.74173548,102320.0,102310.0,0.00014702]
[1762641848086,0.74573548,102320.0,102310.0,0.00014702]
[1762641848585,0.74373548,102320.0,102310.0,0.00014702]
[1762641848786,0.74673548,102320.0,102310.0,0.00014702]
[1762641849689,0.69436281,102320.0,102310.0,0.00014702]
[1762641854192,0.33356281,102320.0,102310.0,0.00014702]
[1762641854392,0.69436281,102320.0,102310.0,0.00014702]
[1762641854795,0.33356281,102320.0,102310.0,0.00014702]
[1762641854994,0.69436281,102320.0,102310.0,0.00014702]
[1762641862104,0.74673548,102320.0,102310.0,0.00014702]
[1762641862805,0.69436281,102320.0,102310.0,0.00014702]
[1762641863103,0.74673548,102320.0,102310.0,0.00014702]
[1762641863803,0.33356281,102320.0,102310.0,0.00014702]
[1762641863998,0.69436281,102320.0,102310.0,0.00014702]
[1762641870804,0.70414329,102320.0,102310.0,0.00014702]
[1762641871411,0.75651596,102320.0,102310.0,0.00014702]
[1762641872011,0.74673548,102320.0,102310.0,0.00014702]
[1762641872313,0.71161949,102320.0,102310.0,0.00014702]
[1762641872912,0.74678572,102320.0,102310.0,0.00014702]
[1762641873314,0.71161949,102320.0,102310.0,0.00014702]
[1762641874417,0.8264195,102320.0,102310.0,0.00014702]
[1762641878115,0.77404683,102320.0,102310.0,0.00014702]
[1762641881821,0.92154795,102320.0,102310.0,0.00014702]
[1762641882620,0.156953,102300.0,102290.0,0.43883691]
[1762641882824,0.32828601,102300.0,102290.0,0.43883691]
[1762641883726,0.32928601,102300.0,102290.0,0.43883691]
[1762641884129,0.33028601,102300.0,102290.0,0.43883691]
[1762641886922,0.29509691,102300.0,102290.0,0.43883691]
[1762641887322,0.33028601,102300.0,102290.0,0.43883691]
[1762641888825,0.33028601,102300.0,102290.0,0.07803691]
[1762641888826,0.40983593,102300.0,102290.0,0.07803691]
[1762641889029,0.1569625,102290.0,102280.0,0.36094702]
[1762641889217,0.29310641,102290.0,102280.0,0.36094702]
[1762641889527,0.29310641,102290.0,102280.0,0.43723915]
[1762641891121,0.29310641,102290.0,102280.0,0.07743915]
[1762641891927,0.29310641,102290.0,102280.0,0.07643915]
[1762641891928,0.32929551,102290.0,102280.0,0.07643915]
[1762641892224,0.32929551,102290.0,102280.0,0.00014702]
[1762641892225,0.33029551,102290.0,102280.0,0.00014702]
[1762641893133,0.69109551,102290.0,102280.0,0.00014702]
[1762641898437,0.27155152,102290.0,102280.0,0.36094702]
[1762641905242,0.38629054,102290.0,102280.0,0.36094702]
[1762641905637,0.38629054,102290.0,102280.0,0.00014702]
[1762641905837,0.27155152,102290.0,102280.0,0.00014702]
[1762641906233,0.32433517,102290.0,102280.0,0.00014702]
[1762641906738,0.43907419,102290.0,102280.0,0.00014702]
[1762641907041,0.1568221,102280.0,102270.0,0.3608]
[1762641907242,0.38630014,102280.0,102270.0,0.3608]
[1762641909137,0.38630014,102280.0,102270.0,0.3618]
[1762641910437,0.40752329,102280.0,102270.0,0.3618]
[1762641916352,0.40753209,102280.0,102270.0,0.3618]
[1762641918857,0.46031574,102280.0,102270.0,0.3618]
[1762641919453,0.46031574,102280.0,102270.0,0.001]
[1762641922757,0.82111574,102280.0,102270.0,0.001]
[1762641923453,0.76833209,102280.0,102270.0,0.001]
[1762641924562,0.82111574,102280.0,102270.0,0.001]
[1762641925058,0.5916377,102280.0,102270.0,0.001]
[1762641925264,0.82111574,102280.0,102270.0,0.001]
[1762641926164,0.5916377,102280.0,102270.0,0.001]
[1762641926463,0.82111574,102280.0,102270.0,0.001]
[1762641928457,0.85625336,102280.0,102270.0,0.001]
[1762641928656,0.20695532,102280.0,102270.0,0.001]
[1762641928856,0.11347957,102280.0,102270.0,0.3618]
[1762641929065,0.03397195,102280.0,102270.0,0.47653902]
[1762641929261,0.07834195,102280.0,102270.0,0.47653902]
[1762641929864,0.07834195,102280.0,102270.0,0.57435072]
[1762641934668,0.05711,102280.0,102270.0,0.6094961]
[1762641934861,0.05711,102280.0,102270.0,1.0022361]
[1762641934862,0.01274,102280.0,102270.0,1.0022361]
[1762641935063,0.01330702,102290.0,102280.0,0.0978021]
[1762641935262,0.01330702,102290.0,102280.0,0.57334112]
[1762641935463,0.01330702,102290.0,102280.0,0.81774112]
[1762641935665,0.01330702,102290.0,102280.0,0.8528865]
[1762641936469,0.01330702,102290.0,102280.0,0.85289495]
[1762641936671,0.01430702,102290.0,102280.0,0.60849495]
[1762641936870,0.01430702,102290.0,102280.0,0.85289495]
[1762641937061,0.01430702,102290.0,102280.0,0.60849495]
[1762641937264,0.01430702,102290.0,102280.0,0.57334957]
[1762641937462,0.01430702,102290.0,102280.0,0.81774957]
[1762641937757,0.01430702,102290.0,102280.0,0.85289495]
[1762641938172,0.01430702,102290.0,102280.0,0.60849495]
[1762641938365,0.01430702,102290.0,102280.0,0.85289495]
[1762641939170,0.01430702,102290.0,102280.0,0.60849495]
[1762641941066,0.01430702,102290.0,102280.0,0.60949495]
[1762641941266,0.01330702,102290.0,102280.0,0.60949495]
[1762641943971,0.01330702,102290.0,102280.0,0.75779495]
[1762641944169,0.03659702,102290.0,102280.0,0.75779495]
[1762641944368,0.03659702,102290.0,102280.0,0.72264957]
[1762641946875,0.03659702,102290.0,102280.0,0.36184957]
[1762641947177,0.03659702,102290.0,102280.0,1.08344957]
[1762641947872,0.00014702,102290.0,102280.0,1.32784957]
[1762641949573,0.00014702,102290.0,102280.0,1.08344957]
[1762641949983,0.00014702,102290.0,102280.0,1.32784957]
[1762641950370,0.01275702,102290.0,102280.0,1.08344957]
[1762641950976,0.00014702,102290.0,102280.0,1.37264719]
[1762641951581,0.00014702,102290.0,102280.0,1.12824719]
[1762641952081,0.00014702,102290.0,102280.0,1.37264719]
[1762641952683,0.00014702,102290.0,102280.0,1.67588719]
[1762641952880,0.00014702,102290.0,102280.0,1.92028719]
[1762641953877,0.00014702,102290.0,102280.0,1.19868719]
[1762641954071,0.00014702,102290.0,102280.0,1.67588719]
[1762641954478,0.00014702,102290.0,102280.0,1.92028719]
[1762641956980,0.00014702,102290.0,102280.0,1.937655]
[1762641957684,0.00014702,102290.0,102280.0,1.693255]
[1762641957887,0.00014702,102290.0,102280.0,1.937655]
[1762641958788,0.00014702,102290.0,102280.0,1.693255]
[1762641958981,0.00014702,102290.0,102280.0,1.937655]
[1762641959677,0.04633,102300.0,102280.0,1.7910571]
[1762641959877,0.06017,102300.0,102290.0,0.60844588]
[1762641960287,0.06017,102300.0,102290.0,0.66095907]
[1762641960689,0.06017,102300.0,102290.0,0.73768962]
[1762641960887,0.03704,102300.0,102290.0,0.73768962]
[1762641961086,0.01384,102300.0,102290.0,0.73768962]
[1762641961589,0.01484,102300.0,102290.0,0.88598962]
[1762641962289,0.01484,102300.0,102290.0,0.98208962]
[1762641962681,0.01484,102300.0,102290.0,0.73768962]
[1762641962877,0.01484,102300.0,102290.0,0.98208962]
[1762641963080,0.01384,102300.0,102290.0,0.98208962]
[1762641963285,0.01384,102300.0,102290.0,0.98308962]
[1762641964192,0.06031702,102310.0,102300.0,0.097783]
[1762641964380,0.06031702,102310.0,102300.0,0.57333047]
[1762641964585,0.00014702,102310.0,102300.0,1.02005704]
[1762641964790,0.00014702,102310.0,102300.0,0.87020366]
[1762641965187,0.00014702,102310.0,102300.0,0.62584366]
[1762641965393,0.00014702,102310.0,102300.0,0.87020366]
[1762641965594,0.00014702,102310.0,102300.0,0.62584366]
[1762641965893,0.00014702,102310.0,102300.0,0.98495113]
[1762641966591,0.00114702,102310.0,102300.0,0.98495113]
[1762641966795,0.00114702,102310.0,102300.0,0.98595113]
[1762641967092,0.00014702,102310.0,102300.0,0.98595113]
[1762641968293,0.01274,102320.0,102300.0,0.83937413]
[1762641968490,0.01274,102320.0,102310.0,0.60839833]
[1762641969295,0.05907,102320.0,102310.0,0.60839833]
[1762641969796,0.06007,102320.0,102310.0,0.60839833]
[1762641970188,0.06007,102320.0,102310.0,0.57332087]
[1762641971393,0.06007,102320.0,102310.0,0.4585734]
[1762641971592,0.1578339,102320.0,102310.0,0.4585734]
[1762641971795,0.06007,102320.0,102310.0,0.4585734]
[1762641971996,0.1578339,102320.0,102310.0,0.4585734]
[1762641973300,0.06007,102320.0,102310.0,0.57332087]
[1762641973800,0.03694,102320.0,102310.0,0.57332087]
[1762641973988,0.03694,102320.0,102310.0,0.4585734]
[1762641974192,0.06007,102320.0,102310.0,0.57332087]
[1762641975904,0.001,102320.0,102310.0,0.85275833]
[1762641976602,0.001,102320.0,102310.0,0.60839833]
[1762641976986,0.001,102320.0,102310.0,0.85275833]
[1762641977404,0.001,102320.0,102310.0,1.00105833]
[1762641977590,0.001,102320.0,102310.0,1.05357152]
[1762641978101,0.00014702,102330.0,102310.0,1.05357152]
[1762641978303,0.00014702,102330.0,102320.0,0.57331137]
[1762641978603,0.01398702,102330.0,102320.0,0.4585639]
[1762641978807,0.01398702,102330.0,102320.0,0.81763137]
[1762641979507,0.01398702,102330.0,102320.0,0.85270883]
[1762641979698,0.01598702,102330.0,102320.0,0.85270883]
[1762641980105,0.01598702,102330.0,102320.0,0.81763137]
[1762641980303,0.002,102330.0,102320.0,1.3231363]
[1762641980506,0.06017,102350.0,102340.0,0.0977447]
[1762641980699,0.06017,102350.0,102340.0,0.93409217]
[1762641982097,0.06017,102350.0,102340.0,0.93509217]
[1762641982706,0.06017,102350.0,102340.0,0.93609217]
[1762641984908,0.06017,102350.0,102340.0,1.01242558]
[1762641988194,0.06017,102350.0,102340.0,1.16072558]
[1762641989411,0.03704,102350.0,102340.0,1.16072558]
[1762641989612,0.05935,102350.0,102340.0,1.16072558]
[1762641991611,0.01384,102350.0,102340.0,1.16072558]
[1762641991811,0.05858,102350.0,102340.0,1.16072558]
[1762641993214,0.01384,102350.0,102340.0,1.16072558]
[1762641993515,0.05858,102350.0,102340.0,1.01242558]
[1762641994217,0.05858,102350.0,102340.0,1.04742833]
[1762641996316,0.05858,102350.0,102340.0,1.16186986]
[1762641997315,0.05858,102350.0,102340.0,1.70922986]
[1762641997499,0.03641702,102360.0,102350.0,0.0977353]
[1762641997701,0.05872702,102360.0,102350.0,0.5731298]
[1762642000621,0.01398702,102360.0,102350.0,0.5731298]
[1762642001118,0.01398702,102360.0,102350.0,0.6877243]
[1762642001318,0.01398702,102360.0,102350.0,0.72272705]
[1762642001519,0.00014702,102360.0,102350.0,0.96696705]
[1762642002115,0.00014702,102360.0,102350.0,0.72272705]
[1762642002617,0.00014702,102360.0,102350.0,0.96696705]
[1762642002805,0.00014702,102360.0,102350.0,0.72272705]
[1762642003009,0.00014702,102360.0,102350.0,0.96696705]
[1762642004022,0.00014702,102360.0,102350.0,0.72272705]
[1762642005021,0.00014702,102360.0,102350.0,0.96696705]
[1762642005721,0.00014702,102360.0,102350.0,0.77824024]
[1762642005919,0.00014702,102360.0,102350.0,1.02248024]
[1762642006315,0.00014702,102360.0,102350.0,1.02548024]
[1762642006523,0.00014702,102360.0,102350.0,1.02448024]
[1762642007024,2e-08,102360.0,102350.0,1.13777749]
[1762642007320,2e-08,102360.0,102350.0,0.89353749]
[1762642007620,2e-08,102360.0,102350.0,1.13777749]
[1762642009221,2e-08,102360.0,102350.0,0.89353749]
[1762642009426,2e-08,102360.0,102350.0,1.13777749]
[1762642009613,2e-08,102360.0,102350.0,0.89353749]
[1762642009923,2e-08,102360.0,102350.0,1.13777749]
[1762642011220,2e-08,102360.0,102350.0,0.89353749]
[1762642011417,2e-08,102360.0,102350.0,1.13777749]
[1762642014229,2e-08,102360.0,102350.0,0.89353749]
[1762642014429,2e-08,102360.0,102350.0,1.13777749]
[1762642015828,2e-08,102360.0,102350.0,0.89353749]
[1762642016539,2e-08,102360.0,102350.0,1.13777749]
[1762642016834,0.03422,102370.0,102350.0,1.13777749]
[1762642017043,0.03422,102370.0,102360.0,0.72268039]
[1762642017044,0.05531,102370.0,102360.0,0.72268039]
[1762642017427,0.05531,102370.0,102360.0,0.87098039]
[1762642018837,0.05531,102370.0,102360.0,0.87198039]
[1762642019544,0.05531,102370.0,102360.0,0.93442588]
[1762642020235,0.03422,102370.0,102360.0,0.93442588]
[1762642020438,0.06491399,102380.0,102370.0,0.00806]
[1762642020638,0.06491399,102380.0,102370.0,0.51842338]
[1762642020833,0.06491399,102380.0,102370.0,0.57093657]
[1762642021042,0.06491399,102380.0,102370.0,0.78324737]
[1762642021238,0.00751399,102380.0,102370.0,0.78324737]
[1762642021438,0.00751399,102380.0,102370.0,1.02744737]
[1762642022236,0.00751399,102380.0,102370.0,0.78324737]
[1762642022438,0.00751399,102380.0,102370.0,1.02744737]
[1762642022749,0.00751399,102380.0,102370.0,0.78324737]
[1762642022941,0.00751399,102380.0,102370.0,1.02744737]
[1762642023137,0.00751399,102380.0,102370.0,0.78324737]
[1762642023543,0.00751399,102380.0,102370.0,1.02744737]
[1762642024245,0.00751399,102380.0,102370.0,0.78324737]
[1762642024553,0.00751399,102380.0,102370.0,0.99247849]
[1762642025544,0.06493399,102380.0,102370.0,0.74827849]
[1762642026140,0.06493399,102380.0,102370.0,0.89657849]
[1762642029850,0.06493399,102380.0,102370.0,1.44369849]
[1762642039155,0.16264079,102380.0,102370.0,1.32910399]
[1762642039554,0.16264079,102380.0,102370.0,1.44369849]
[1762642039855,0.06493399,102380.0,102370.0,1.44369849]
[1762642040356,0.16264079,102380.0,102370.0,1.44369849]
[1762642040857,0.06493399,102380.0,102370.0,1.44369849]
[1762642041861,0.06493399,102380.0,102370.0,1.08289849]
[1762642042158,0.06493399,102380.0,102370.0,1.80449849]
[1762642043766,0.16264079,102380.0,102370.0,1.80449849]
[1762642044061,0.16264079,102380.0,102370.0,1.80549849]
[1762642044261,0.06493399,102380.0,102370.0,1.69090399]
[1762642044558,0.06493399,102380.0,102370.0,1.69190399]
[1762642044759,0.06493399,102380.0,102370.0,1.80649849]
[1762642045259,0.06493399,102380.0,102370.0,1.80650355]
[1762642046363,0.16264089,102380.0,102370.0,1.69190905]
[1762642046563,0.06493399,102380.0,102370.0,1.69190905]
[1762642046962,0.16264089,102380.0,102370.0,1.69190905]
[1762642047167,0.16264089,102380.0,102370.0,1.6393908]
[1762642049165,0.16264089,102380.0,102370.0,1.70931336]
[1762642049361,0.06493399,102380.0,102370.0,1.70931336]
[1762642052663,0.16264079,102380.0,102370.0,1.70931336]
[1762642052854,0.16264079,102380.0,102370.0,1.59471886]
[1762642053054,0.16264079,102380.0,102370.0,1.70931336]
[1762642055062,0.16264079,102380.0,102370.0,1.69197768]
[1762642055464,0.16264079,102380.0,102370.0,1.54367768]
[1762642057061,0.18411407,102380.0,102370.0,1.54367768]
[1762642058366,0.18411407,102380.0,102370.0,1.54363633]
[1762642058564,0.18411407,102380.0,102370.0,1.42908318]
[1762642058769,0.18411407,102380.0,102370.0,0.88196318]
[1762642060162,0.18411407,102380.0,102370.0,0.8293763]
[1762642063766,0.29866722,102380.0,102370.0,0.7236]
[1762642064167,0.29866722,102380.0,102370.0,0.6876]
[1762642064575,0.29866722,102380.0,102370.0,0.6866]
[1762642064766,0.29866722,102380.0,102370.0,0.6876]
[1762642066266,0.30066722,102380.0,102370.0,0.6866]
[1762642066775,0.30266722,102380.0,102370.0,0.6866]
[1762642072683,0.30266722,102380.0,102370.0,0.70768]
[1762642075184,0.30266722,102380.0,102370.0,0.73043]
[1762642075482,0.30266722,102380.0,102370.0,0.6866]
[1762642075683,0.30266722,102380.0,102370.0,0.70844]
[1762642075981,0.30266722,102380.0,102370.0,0.72996]
[1762642076878,0.18811407,102380.0,102370.0,0.72996]
[1762642077082,0.30266722,102380.0,102370.0,0.72996]
[1762642077485,0.30266722,102380.0,102370.0,0.40416]
[1762642082390,0.33780484,102380.0,102370.0,0.38264]
[1762642082592,0.1557663,102370.0,102360.0,0.40416]
[1762642082792,0.17723958,102370.0,102360.0,0.40416]
[1762642083096,0.29179273,102370.0,102360.0,0.40416]
[1762642084085,0.29279273,102370.0,102360.0,0.40416]
[1762642087194,0.32793035,102370.0,102360.0,0.40416]
[1762642088096,0.29279273,102370.0,102360.0,0.40416]
[1762642088297,0.32793035,102370.0,102360.0,0.40416]
[1762642088487,0.32793035,102370.0,102360.0,0.38264]
[1762642090701,0.32793035,102370.0,102360.0,0.40416]
[1762642093898,0.1910672,102370.0,102360.0,0.40416]
[1762642094100,0.2133772,102370.0,102360.0,0.41583]
[1762642096192,0.32793035,102370.0,102360.0,0.41583]
[1762642097599,0.14309958,102370.0,102360.0,0.5135558]
[1762642097804,0.12018958,102370.0,102360.0,0.5135558]
[1762642098197,0.12018958,102370.0,102360.0,0.62810895]
[1762642098396,0.02247328,102370.0,102360.0,0.62810895]
[1762642098801,0.03613762,102370.0,102360.0,0.5135558]
[1762642099002,0.02247328,102370.0,102360.0,0.5135558]
[1762642102506,0.02247328,102370.0,102360.0,0.62810895]
[1762642113211,0.02247328,102370.0,102360.0,0.68069583]
[1762642113407,0.02247328,102370.0,102360.0,0.62810895]
[1762642114109,0.02247328,102370.0,102360.0,0.62910895]
[1762642114311,0.02147328,102370.0,102360.0,0.62910895]
[1762642114511,0.10522689,102380.0,102370.0,0.04749]
[1762642114711,0.127192,102380.0,102370.0,0.40829]
[1762642115312,0.127192,102380.0,102370.0,0.76909]
[1762642115614,0.127192,102380.0,102370.0,0.8668063]
[1762642115811,0.128192,102380.0,102370.0,0.8668063]
[1762642116111,0.149882,102380.0,102370.0,0.8668063]
[1762642116314,0.185152,102380.0,102370.0,0.8627763]
[1762642118016,0.185152,102380.0,102370.0,0.8668063]
[1762642119212,0.128192,102380.0,102370.0,0.8668063]
[1762642119414,0.0304791,102380.0,102370.0,0.8668063]
[1762642119712,0.0304791,102380.0,102370.0,0.98135945]
[1762642120321,0.1281858,102380.0,102370.0,0.98135442]
[1762642123618,0.0304791,102380.0,102370.0,0.98135442]
[1762642126826,0.00851399,102380.0,102370.0,0.98135442]
[1762642127026,0.03048219,102380.0,102370.0,0.98135442]
[1762642134627,0.07402219,102380.0,102370.0,0.8668063]
[1762642134831,0.07402219,102380.0,102370.0,0.98135442]
[1762642135033,0.03048219,102380.0,102370.0,0.98135442]
[1762642136932,0.02947106,102380.0,102370.0,0.98135442]
[1762642137534,0.02947106,102380.0,102370.0,1.0339413]
[1762642142738,0.05139106,102380.0,102370.0,1.0339413]
[1762642143237,0.07301106,102380.0,102370.0,1.0339413]
[1762642144339,0.05139106,102380.0,102370.0,1.0339413]
[1762642144539,0.05139106,102380.0,102370.0,1.5811013]
[1762642144734,0.02947106,102380.0,102370.0,1.5811013]
[1762642146239,0.02947106,102380.0,102370.0,1.7294013]
[1762642148747,0.05139106,102380.0,102370.0,1.7294013]
[1762642149541,0.02942286,102380.0,102370.0,1.7294013]
[1762642150247,0.00750286,102380.0,102370.0,1.7294013]
[1762642150439,0.02950594,102380.0,102370.0,1.7294013]
[1762642150639,0.02950594,102380.0,102370.0,1.84394942]
[1762642150841,0.00750286,102380.0,102370.0,1.7294013]
[1762642151042,0.00750286,102380.0,102370.0,1.84394942]
[1762642151942,0.02950695,102380.0,102370.0,1.7294013]
[1762642153349,0.02950695,102380.0,102370.0,1.84394942]
[1762642153549,0.02315111,102380.0,102370.0,1.84394942]
[1762642155442,0.02315111,102380.0,102370.0,1.69564942]
[1762642155649,0.0534648,102390.0,102380.0,0.22909624]
[1762642155851,0.07547478,102390.0,102380.0,0.74022771]
[1762642156049,0.08881478,102390.0,102380.0,0.74022771]
[1762642156237,0.0887248,102390.0,102380.0,0.74022771]
[1762642157549,0.0907248,102390.0,102380.0,0.75017369]
[1762642157750,0.0927248,102390.0,102380.0,0.82757153]
[1762642157950,0.0907248,102390.0,102380.0,0.82757153]
[1762642159638,0.1123448,102390.0,102380.0,0.82757153]
[1762642160643,0.1103448,102390.0,102380.0,0.82757153]
[1762642160843,0.1113448,102390.0,102380.0,0.82757153]
[1762642161044,0.1113448,102390.0,102380.0,0.97587153]
[1762642164055,0.0897248,102390.0,102380.0,0.97587153]
[1762642164446,0.1113448,102390.0,102380.0,0.97587153]
[1762642165553,0.0678048,102390.0,102380.0,0.97587153]
[1762642166151,0.0906748,102390.0,102380.0,0.97587153]
[1762642166455,0.1120348,102390.0,102380.0,0.97587153]
[1762642170857,0.1120348,102390.0,102380.0,0.96592555]
[1762642178564,0.1120348,102390.0,102380.0,1.32672555]
[1762642181766,0.13400033,102390.0,102380.0,1.32672555]
[1762642182066,0.1120348,102390.0,102380.0,1.32672555]
[1762642182265,0.13400337,102390.0,102380.0,1.32672555]
[1762642182466,0.13400337,102390.0,102380.0,1.21214678]
[1762642182967,0.1120348,102390.0,102380.0,1.75918678]
[1762642183359,0.13400765,102390.0,102380.0,1.75918678]
[1762642183569,0.1120348,102390.0,102380.0,1.75918678]
[1762642184860,0.1110348,102390.0,102380.0,1.76118678]
[1762642185261,0.13302366,102390.0,102380.0,1.77848467]
[1762642185772,0.13302366,102390.0,102380.0,1.70856211]
[1762642188775,0.13302366,102390.0,102380.0,1.76119226]
[1762642188977,0.13302366,102390.0,102380.0,1.70856211]
[1762642189275,0.13302366,102390.0,102380.0,1.76119193]
[1762642189470,0.13302366,102390.0,102380.0,1.70856211]
[1762642189871,0.13302366,102390.0,102380.0,1.76119193]
[1762642190576,0.13302366,102390.0,102380.0,1.70856211]
[1762642191980,0.13302366,102390.0,102380.0,1.76119192]
[1762642192277,0.13302366,102390.0,102380.0,1.70856211]
[1762642192979,0.13302366,102390.0,102380.0,1.76119162]
[1762642193374,0.13302366,102390.0,102380.0,1.70856211]
[1762642193779,0.13302366,102390.0,102380.0,0.98696211]
[1762642193980,0.13302366,102390.0,102380.0,1.70856211]
[1762642194782,0.13302366,102390.0,102380.0,1.76119389]
[1762642195775,0.08879366,102390.0,102380.0,1.70856211]
[1762642195978,0.11047366,102390.0,102380.0,1.70856211]
[1762642196778,0.13379366,102390.0,102380.0,1.761195]
[1762642198781,0.13379366,102390.0,102380.0,1.70856211]
[1762642200189,0.13379366,102390.0,102380.0,1.76119642]
[1762642202078,0.13379366,102390.0,102380.0,1.61289642]
[1762642202280,0.08879366,102390.0,102380.0,1.61289642]
[1762642202486,0.07545366,102390.0,102380.0,1.61289642]
[1762642203080,0.08839366,102390.0,102380.0,1.61289642]
[1762642203481,0.11007366,102390.0,102380.0,1.61289642]
[1762642205388,0.13339366,102390.0,102380.0,1.61289642]
[1762642207882,0.13339366,102390.0,102380.0,1.76119642]
[1762642208082,0.11007366,102390.0,102380.0,1.76119642]
[1762642209089,0.07992886,102390.0,102380.0,1.76119642]
[1762642211686,0.07992886,102390.0,102380.0,1.64667895]
[1762642211993,0.07992886,102390.0,102380.0,1.76119642]
[1762642212290,0.07992886,102390.0,102380.0,1.70856211]
[1762642225806,0.07992886,102390.0,102380.0,0.98696211]
[1762642226004,0.07992886,102390.0,102380.0,1.70856211]
[1762642227807,0.07992886,102390.0,102380.0,1.76119485]
[1762642230808,0.07992886,102390.0,102380.0,1.03959485]
[1762642231010,0.07992886,102390.0,102380.0,1.76119485]
[1762642232398,0.07992886,102390.0,102380.0,1.64667738]
[1762642232594,0.07992886,102390.0,102380.0,1.76119485]
[1762642233105,0.05794,102390.0,102380.0,1.76119485]
[1762642233309,0.07993053,102390.0,102380.0,1.70856211]
[1762642234510,0.07993053,102390.0,102380.0,1.77848467]
[1762642240914,0.07993053,102390.0,102380.0,1.70856211]
[1762642242417,0.07993053,102390.0,102380.0,1.82305102]
[1762642247107,0.07993053,102390.0,102380.0,1.87568683]
[1762642250816,0.07993053,102390.0,102380.0,1.51488683]
[1762642251022,0.07993053,102390.0,102380.0,1.87568683]
[1762642256621,0.07991803,102390.0,102380.0,1.87568683]
[1762642261125,0.07991803,102390.0,102380.0,1.82305102]
[1762642264534,0.07991803,102390.0,102380.0,1.89297358]
[1762642270944,0.05794,102390.0,102380.0,1.89297358]
[1762642271837,0.07956787,102390.0,102380.0,1.89297358]
[1762642275442,0.07956787,102390.0,102380.0,1.17137358]
[1762642275645,0.05624787,102390.0,102380.0,1.89297358]
[1762642276037,0.07724787,102390.0,102380.0,1.89297358]
[1762642276937,0.07724787,102390.0,102380.0,1.82305102]
[1762642277842,0.03456787,102390.0,102380.0,1.82305102]
[1762642278257,0.05695787,102390.0,102380.0,1.82305102]
[1762642278546,0.07795787,102390.0,102380.0,1.82305102]
[1762642280550,0.05633,102390.0,102380.0,1.89297358]
[1762642285051,0.05633,102390.0,102380.0,1.17137358]
[1762642285248,0.05633,102390.0,102380.0,1.89297358]
[1762642286442,0.03533,102390.0,102380.0,1.89297358]
[1762642286650,0.01294,102390.0,102380.0,1.89297358]
[1762642287151,0.03572,102390.0,102380.0,1.89297358]
[1762642288044,0.05785,102390.0,102380.0,1.89297358]
[1762642288249,0.05785,102390.0,102380.0,1.82305102]
[1762642290249,0.05785,102390.0,102380.0,1.89297358]
[1762642291153,0.07947372,102390.0,102380.0,1.82305102]
[1762642293955,0.03456372,102390.0,102380.0,1.82305102]
[1762642294348,0.05734372,102390.0,102380.0,1.82305102]
[1762642294548,0.07947372,102390.0,102380.0,1.82305102]
[1762642298157,0.05785,102390.0,102380.0,1.89297358]
[1762642299058,0.05785,102390.0,102380.0,1.17137358]
[1762642299257,0.05785,102390.0,102380.0,1.89297358]
[1762642302858,0.05785,102390.0,102380.0,1.17137358]
[1762642303058,0.05785,102390.0,102380.0,1.89297358]
[1762642303245,0.05785,102390.0,102380.0,1.82305102]
[1762642304046,0.05785,102390.0,102380.0,1.10145102]
[1762642304251,0.05785,102390.0,102380.0,1.82305102]
[1762642304451,0.05785,102390.0,102380.0,1.7085417]
[1762642308956,0.05785,102390.0,102380.0,1.77846426]
[1762642318864,0.05785,102390.0,102380.0,1.05686426]
[1762642319167,0.05785,102390.0,102380.0,1.77846426]
[1762642319765,0.05785,102390.0,102380.0,1.05686426]
[1762642319964,0.05785,102390.0,102380.0,1.77846426]
[1762642324182,0.02162772,102390.0,102380.0,1.82303876]
[1762642325085,0.02162772,102390.0,102380.0,1.67473876]
[1762642325686,0.03459772,102390.0,102380.0,1.67473876]
[1762642326784,0.01297,102390.0,102380.0,1.67473876]
[1762642327488,0.01297,102390.0,102380.0,1.5602417]
[1762642327782,0.01297,102390.0,102380.0,1.67473876]
[1762642327982,0.04328886,102400.0,102380.0,1.84236812]
[1762642328182,0.04261154,102400.0,102390.0,0.63081033]
[1762642328381,0.06495154,102400.0,102390.0,0.63081033]
[1762642328891,0.08717154,102400.0,102390.0,0.63081033]
[1762642329089,0.08717154,102400.0,102390.0,0.72850783]
[1762642329289,0.08717154,102400.0,102390.0,0.87680783]
[1762642329888,0.06550886,102400.0,102390.0,0.87680783]
[1762642330083,0.06650886,102400.0,102390.0,0.87680783]
[1762642330789,0.06750886,102400.0,102390.0,0.87680783]
[1762642332087,0.06750886,102400.0,102390.0,1.24913467]
[1762642336186,0.06650886,102400.0,102390.0,1.24913467]
[1762642336383,0.06550886,102400.0,102390.0,1.24913467]
[1762642336587,0.06550886,102400.0,102390.0,1.25013467]
[1762642339692,0.06550886,102400.0,102390.0,1.79717467]
[1762642340389,0.00800886,102400.0,102390.0,1.79717467]
[1762642340589,0.00800886,102400.0,102390.0,1.81455418]
[1762642342494,0.02097886,102400.0,102390.0,1.81455418]
[1762642343494,0.04331886,102400.0,102390.0,1.81455418]
[1762642343694,0.06553886,102400.0,102390.0,1.81455418]
[1762642347999,0.06553886,102400.0,102390.0,1.09295418]
[1762642348195,0.06553886,102400.0,102390.0,1.81455418]
[1762642348796,0.06553886,102400.0,102390.0,1.09295418]
[1762642348998,0.02097886,102400.0,102390.0,1.81455418]
[1762642349297,0.04419886,102400.0,102390.0,1.81455418]
[1762642350802,0.04419886,102400.0,102390.0,1.09295418]
[1762642351001,0.04419886,102400.0,102390.0,1.81455418]
[1762642351200,0.06587886,102400.0,102390.0,1.81455418]
[1762642351900,0.06587886,102400.0,102390.0,1.09295418]
[1762642352103,0.06587886,102400.0,102390.0,1.81455418]
[1762642356199,0.00917434,102410.0,102390.0,2.75641168]
[1762642356397,0.05808,102420.0,102400.0,0.85509248]
[1762642356696,0.05808,102420.0,102410.0,0.45212402]
[1762642357098,0.05808,102420.0,102410.0,0.52204658]
[1762642357294,0.07245211,102430.0,102410.0,0.97834194]
[1762642357503,0.07245211,102430.0,102420.0,0.63059037]
[1762642358806,0.07345211,102430.0,102420.0,0.63059037]